fUST/lending_fUST_20251230
["ID","MTS","AMOUNT","RATE_DAILY","PERIOD"]
[400044283,1767049843461,-2451.29,0.000291,2]
[400044285,1767049843470,-2451.29,0.000291,2]
[400044287,1767049843479,-716.70115333,0.00029105,28]
[400044289,1767049843488,-314.28171,0.000292,120]
[400044291,1767049843498,-2451.29,0.000292,2]
[400044293,1767049843508,-2451.29,0.000292,2]
[400044295,1767049843517,-2589.0,0.00029284,2]
[400044297,1767049843526,-2451.29,0.000293,2]
[400044299,1767049843535,-804.0,0.00029344,2]
[400044301,1767049843544,-2589.0,0.00029378,2]
[400044303,1767049843554,-2451.29,0.000294,2]
[400044305,1767049843563,-2451.29,0.000294,2]
[400044307,1767049843572,-156.78044487,0.00029492,5]
[400044309,1767049843582,-1500.0,0.000295,2]
[400044311,1767049843591,-2451.29,0.000295,2]
[400044313,1767049843600,-2451.29,0.000295,2]
[400044315,1767049843609,-2156.0,0.00029569,2]
[400044317,1767049843618,-424.346,0.00029569,2]
[400044319,1767049843627,-1359.0,0.00029569,2]
[400044320,1767049843636,-366.0,0.00029584,2]
[400044323,1767049843646,-1050.0,0.00029589,5]
[400044324,1767049843656,-550.0,0.00029589,5]
[400044326,1767049843665,-550.0,0.00029589,5]
[400044328,1767049843675,-175.98,0.000296,2]
[400044330,1767049843684,-2451.29,0.000296,2]
[400044332,1767049843695,-2451.29,0.000296,2]
[400044334,1767049843705,-2451.29,0.000297,2]
[400044336,1767049843715,-716.70115333,0.00029711,29]
[400044339,1767049843725,-151.0,0.00029753,3]
[400044341,1767049843735,-1032.05,0.000298,7]
[400044342,1767049843744,-2451.29,0.000298,2]
[400044344,1767049843754,-2451.29,0.000298,2]
[400044346,1767049843763,-11370.66,0.000299,2]
[400044348,1767049843773,-2451.29,0.000299,2]
[400044351,1767049843785,-2451.29,0.000299,2]
[400044353,1767049843794,-5000.0,0.00029999,15]
[400044355,1767049843803,-154.21565219,0.0003,60]
[400044357,1767049843815,-103268.54955028,0.0003,120]
[400044358,1767049843824,-1014.82,0.0003,30]
[400044361,1767049843834,-1457.81,0.0003,14]
[400044363,1767049843843,-1500.0,0.0003,2]
[400044365,1767049843853,-1017.0,0.0003,7]
[400044367,1767049843862,-2451.29,0.0003,2]
[400044369,1767049843872,-2000.0,0.0003,7]
[400044371,1767049843881,-2589.0,0.00030048,2]
[400044373,1767049843892,-1014.82,0.0003006,30]
[400044375,1767049843901,-804.0,0.00030073,2]
[400044377,1767049843911,-2451.29,0.000301,2]
[400044378,1767049843920,-2451.29,0.000301,2]
[400044380,1767049843929,-596.1485617,0.00030117,7]
[400044382,1767049843937,-1150.0,0.00030137,5]
[400044384,1767049843947,-650.0,0.00030137,5]
[400044386,1767049843959,-650.0,0.00030137,5]
[400044388,1767049843968,-804.0,0.00030196,2]
[400044390,1767049843978,-2451.29,0.000302,2]
[400044392,1767049843987,-2451.29,0.000302,2]
[400044394,1767049843998,-804.0,0.00030265,2]
[400044397,1767049844008,-314.28171,0.000303,120]
[400044399,1767049844018,-2451.29,0.000303,2]
[400044400,1767049844029,-716.70115333,0.00030316,30]
[400044402,1767049844038,-2451.29,0.000304,2]
[400044405,1767049844047,-2451.29,0.000304,2]
[400044407,1767049844056,-15277.58765547,0.00030431,2]
[400044409,1767049844066,-1500.71541501,0.00030446,7]
[400044411,1767049844083,-300.64585245,0.00030446,7]
[400044414,1767049844094,-1452.63873254,0.00030446,7]
[400044416,1767049844104,-391.02827004,0.00030472,7]
[400044417,1767049844115,-1496.92909725,0.00030472,7]
[400044420,1767049844126,-701.04263271,0.00030472,7]
[400044422,1767049844136,-800.04634813,0.000305,2]
[400044427,1767049844171,-1144.60886202,0.000305,2]
[400044429,1767049844182,-506.63478985,0.000305,2]
[400044431,1767049844191,-2451.29,0.000305,2]
[400044433,1767049844201,-928.81706361,0.000306,2]
[400045430,1767050171644,-500.0,0.00013273,2]
[400045431,1767050171665,-100.00765852,0.00013273,2]
[400045441,1767050209977,1837.7,0.00028767,120]
[400045442,1767050211867,153.0072915,0.00028767,120]
[400045443,1767050238640,5000.0,0.00013185,2]
[400045444,1767050258587,-399.99234148,0.00013273,2]
[400045445,1767050258614,-500.0,0.00013273,2]
[400045446,1767050258643,-500.0,0.00013273,2]
[400045447,1767050258679,-232.03,0.0001368,2]
[400045448,1767050258706,-300.0,0.00013698,2]
[400045449,1767050258733,-500.0,0.00013699,2]
[400045450,1767050258761,-500.0,0.00013699,2]
[400045451,1767050258789,-500.0,0.00013699,2]
[400045452,1767050258817,-191.58046107,0.00013699,2]
[400045453,1767050258844,-500.0,0.00013699,2]
[400045454,1767050258874,-500.0,0.00013699,2]
[400045455,1767050258904,-252.8043949,0.00013699,2]
[400045456,1767050259119,-247.1956051,0.00013699,2]
[400045457,1767050259151,-500.0,0.00013699,2]
[400045458,1767050259181,-500.0,0.00013699,2]
[400045459,1767050259210,-500.0,0.00013699,2]
[400045460,1767050259238,-500.0,0.00013821,2]
[400045461,1767050259270,-500.0,0.00013821,2]
[400045462,1767050259297,-500.0,0.00013821,2]
[400045463,1767050259324,-151.0,0.000139,2]
[400045464,1767050260007,-8171.5807512,0.00013918,2]
[400045465,1767050260032,-10000.01,0.00013918,2]
[400045466,1767050260059,-10000.01,0.00013918,2]
[400045467,1767050260083,-10000.01,0.00013918,2]
[400045468,1767050260105,-10000.01,0.00013918,2]
[400045469,1767050260136,-1828.3792488,0.00013918,2]
[400045470,1767050260164,-300.0,0.00013928,2]
[400045471,1767050260199,-500.0,0.0001393,2]
[400045472,1767050260228,-500.0,0.0001393,2]
[400045473,1767050260281,-6871.6307512,0.00013931,2]
[400045474,1767050260297,-1828.3792488,0.00013931,2]
[400045475,1767050260325,-300.0,0.00013931,2]
[400045476,1767050260348,-500.0,0.00013931,2]
[400045477,1767050260375,-500.0,0.00013931,2]
[400045478,1767050260390,-3743.2515024,0.00013931,2]
[400045479,1767050260416,-10000.01,0.00013931,2]
[400045480,1767050260432,-10000.01,0.00013931,2]
[400045481,1767050260459,-10000.01,0.00013931,2]
[400045482,1767050260537,-10000.01,0.00013931,2]
[400045483,1767050264360,-5000.0,0.00013185,2]
[400045484,1767050264400,-0.01,0.00013931,2]
[400045485,1767050264450,-10000.01,0.00013931,2]
[400045486,1767050264589,-10000.01,0.00013931,2]
[400045487,1767050264707,-10000.01,0.00013931,2]
[400045488,1767050282454,-5000.0,0.00013792,2]
[400045489,1767050282488,-0.01,0.00013931,2]
[400045490,1767050282571,-10000.01,0.00013931,2]
[400045491,1767050282681,-300.0,0.0001393,2]
[400045492,1767050282690,-9700.01,0.00013931,2]
[400045493,1767050282829,-10000.01,0.00013931,2]
[400045494,1767050282932,-10000.01,0.00013931,2]
[400045495,1767050283946,-10000.01,0.00013931,2]
[400045496,1767050284094,-10000.01,0.00013931,2]
[400045497,1767050284206,-10000.01,0.00013931,2]
[400045498,1767050288680,-500.0,0.00013699,2]
[400045499,1767050288709,-4000.01,0.00013792,2]
[400045500,1767050288747,-999.99,0.00013792,2]
[400045501,1767050288921,-10000.01,0.00013931,2]
[400045502,1767050289065,-500.0,0.00013699,2]
[400045503,1767050289103,-9000.01,0.00013931,2]
[400045504,1767050297555,-500.0,0.00013699,2]
[400045505,1767050297587,-9000.01,0.00013931,2]
[400045506,1767050297669,-10000.01,0.00013931,2]
[400045507,1767050297841,-10000.01,0.00013931,2]
[400045508,1767050298005,-207.30691018,0.00013462,2]
[400045509,1767050298040,-9585.39617964,0.00013931,2]
[400045510,1767050298096,-10000.01,0.00013931,2]
[400045511,1767050298228,-10000.01,0.00013931,2]
[400045512,1767050298369,-10000.01,0.00013931,2]
[400045513,1767050298461,-10000.01,0.00013931,2]
[400045514,1767050303636,-5000.0,0.00013792,2]
[400045515,1767050303671,-0.01,0.00013931,2]
[400045516,1767050311135,5000.0,0.00013172,2]
[400045517,1767050315885,-252.34,0.00013297,2]
[400045518,1767050315917,-500.0,0.0001393,2]
[400045519,1767050315951,-500.0,0.0001393,2]
[400045520,1767050315983,-500.0,0.0001393,2]
[400045521,1767050316015,-500.0,0.0001393,2]
[400045522,1767050316048,-500.0,0.0001393,2]
[400045523,1767050316080,-603.77745451,0.0001393,2]
[400045524,1767050316113,-400.48199547,0.0001393,2]
[400045525,1767050316147,-504.68,0.0001393,2]
[400045526,1767050316317,-1477.45110004,0.00013931,2]
[400045527,1767050316345,-10000.01,0.00013931,2]
[400045528,1767050316360,-10000.01,0.00013931,2]
[400045529,1767050316402,-10000.01,0.00013931,2]
[400045530,1767050316505,-10000.01,0.00013931,2]
[400045531,1767050316613,-10000.01,0.00013931,2]
[400045532,1767050318752,-10000.01,0.00013931,2]
[400045533,1767050318891,-10000.01,0.00013931,2]
[400045534,1767050321797,-10000.01,0.00013931,2]
[400045535,1767050321916,-10000.01,0.00013931,2]
[400045536,1767050322023,-10000.01,0.00013931,2]
[400045537,1767050322266,-10000.01,0.00013931,2]
[400045538,1767050322291,-10000.01,0.00013931,2]
[400045539,1767050325833,5499.37,0.00012329,2]
[400045540,1767050336243,4582.81,0.00012329,2]
[400045541,1767050346875,3819.01,0.00012329,2]
[400045542,1767050348517,41500.41,0.00028767,120]
[400045543,1767050349076,-500.0,0.00013273,2]
[400045544,1767050349106,-4000.01,0.00013654,2]
[400045545,1767050349149,-999.99,0.00013654,2]
[400045546,1767050349217,-5000.0,0.00013792,2]
[400045547,1767050349259,-0.01,0.00013821,2]
[400045548,1767050349334,-499.99,0.00013821,2]
[400045549,1767050349361,-300.0,0.00013929,2]
[400045550,1767050349391,-500.0,0.0001393,2]
[400045551,1767050349422,-500.0,0.0001393,2]
[400045552,1767050349452,-500.0,0.0001393,2]
[400045553,1767050349480,-500.0,0.0001393,2]
[400045554,1767050349512,-500.0,0.0001393,2]
[400045555,1767050349541,-650.0,0.0001393,2]
[400045556,1767050349570,-500.0,0.0001393,2]
[400045557,1767050349601,-500.0,0.0001393,2]
[400045558,1767050349706,-500.0,0.0001393,2]
[400045559,1767050349734,-500.0,0.0001393,2]
[400045560,1767050349762,-500.0,0.0001393,2]
[400045561,1767050349790,-500.0,0.0001393,2]
[400045562,1767050349821,-500.0,0.0001393,2]
[400045563,1767050349849,-500.0,0.0001393,2]
[400045564,1767050349878,-500.0,0.0001393,2]
[400045565,1767050349906,-500.0,0.0001393,2]
[400045566,1767050349935,-500.0,0.0001393,2]
[400045567,1767050350101,-500.0,0.0001393,2]
[400045568,1767050350412,-100.03,0.0001393,2]
[400045569,1767050350430,-0.01,0.0001393,2]
[400045570,1767050351008,5000.0,0.00013172,2]
[400045571,1767050352035,-399.96,0.0001393,2]
[400045572,1767050352066,-500.0,0.0001393,2]
[400045573,1767050352096,-500.0,0.0001393,2]
[400045574,1767050352129,-500.0,0.0001393,2]
[400045575,1767050352159,-500.0,0.0001393,2]
[400045576,1767050352191,-500.0,0.0001393,2]
[400045577,1767050352221,-363.3160752,0.0001393,2]
[400045578,1767050352251,-304.99010506,0.0001393,2]
[400045579,1767050352281,-500.0,0.0001393,2]
[400045580,1767050352312,-392.91201617,0.0001393,2]
[400045581,1767050352343,-500.0,0.0001393,2]
[400045582,1767050352583,-77.65360714,0.00013931,2]
[400045583,1767050352601,-10000.01,0.00013931,2]
[400045584,1767050352617,-10000.01,0.00013931,2]
[400045585,1767050355122,-10000.01,0.00013931,2]
[400045586,1767050355258,-10000.01,0.00013931,2]
[400045587,1767050357816,3182.51,0.00012329,2]
[400045588,1767050361358,-5000.0,0.00013792,2]
[400045589,1767050361430,-0.01,0.00013931,2]
[400045590,1767050367294,-500.0,0.00013699,2]
[400045591,1767050367323,-500.0,0.00013699,2]
[400045592,1767050367377,-8000.01,0.00013931,2]
[400045593,1767050367412,-500.0,0.00013699,2]
[400045594,1767050367446,-9000.01,0.00013931,2]
[400045595,1767050367546,-10000.01,0.00013931,2]
[400045596,1767050368436,3505.89,0.00012329,2]
[400045597,1767050369237,172.21,0.0001,2]
[400045598,1767050371673,172.21,0.000102,2]
[400045599,1767050373284,-500.0,0.00013699,2]
[400045600,1767050373319,-9000.01,0.00013931,2]
[400045601,1767050373404,-10000.01,0.00013931,2]
[400045602,1767050374058,172.21,0.000104,2]
[400045603,1767050376299,-5000.0,0.00013562,2]
[400045604,1767050376335,-0.01,0.00013931,2]
[400045605,1767050376518,172.21,0.000106,2]
[400045606,1767050378946,172.21,0.000108,2]
[400045607,1767050378975,2921.57,0.00012329,2]
[400045608,1767050379487,-10000.01,0.00013931,2]
[400045609,1767050385459,-5000.0,0.00013792,2]
[400045610,1767050385497,-0.01,0.00013931,2]
[400045611,1767050386201,549.17,0.0001314,2]
[400045612,1767050388502,-1098.33,0.00013766,2]
[400045613,1767050388538,-7803.35,0.00013931,2]
[400045614,1767050389511,2434.64,0.00012329,2]
[400045615,1767050391633,-10000.01,0.00013931,2]
[400045616,1767050394541,-10000.01,0.00013931,2]
[400045617,1767050397692,-10000.01,0.00013931,2]
[400045618,1767050397919,-10000.01,0.00013931,2]
[400045620,1767050398044,-10000.01,0.00013931,2]
[400045621,1767050398171,-10000.01,0.00013931,2]
[400045622,1767050398281,-10000.01,0.00013931,2]
[400045623,1767050398400,-10000.01,0.00013931,2]
[400045624,1767050398588,-10000.01,0.00013931,2]
[400045625,1767050400128,2028.87,0.00012329,2]
[400045626,1767050400590,-5000.0,0.00013792,2]
[400045627,1767050400625,-0.01,0.00013931,2]
[400045628,1767050406839,-500.0,0.00013699,2]
[400045629,1767050406869,-500.0,0.00013699,2]
[400045630,1767050406897,-500.0,0.00013699,2]
[400045631,1767050406925,-300.0,0.0001393,2]
[400045632,1767050407124,-300.0,0.0001393,2]
[400045633,1767050407158,-300.0,0.0001393,2]
[400045634,1767050407351,-5200.01,0.00013931,2]
[400045635,1767050407378,-10000.01,0.00013931,2]
[400045636,1767050407392,-10000.01,0.00013931,2]
[400045637,1767050407405,-10000.01,0.00013931,2]
[400045638,1767050407434,-10000.01,0.00013931,2]
[400045639,1767050407563,-10000.01,0.00013931,2]
[400045640,1767050407754,-10000.01,0.00013931,2]
[400045641,1767050410731,1690.72,0.00012329,2]
[400045642,1767050421304,1408.94,0.00012329,2]
[400045643,1767050431910,1174.11,0.00012329,2]
[400045644,1767050434872,200.0,0.00027,120]
[400045645,1767050435163,200.0,0.000281,120]
[400045646,1767050442464,1174.11,0.00012329,2]
[400045647,1767050453244,782.74,0.00012329,2]
[400045648,1767050463846,782.74,0.00012329,2]
[400045649,1767050474430,521.83,0.00012329,2]
[400045650,1767050485083,434.86,0.00012329,2]
[400045651,1767050495787,362.38,0.00012329,2]
[400045652,1767050506386,301.99,0.00012329,2]
[400045653,1767050516953,251.65,0.00012329,2]
[400045654,1767050527503,209.71,0.00012329,2]
[400045655,1767050537937,174.76,0.00012329,2]
[400045656,1767050548442,873.83,0.00012329,2]
[400045657,1767050570105,176.0,7.9e-07,2]
[400045658,1767050571121,176.0,7.9e-07,2]
[400045659,1767050572155,176.0,7.9e-07,2]
[400045660,1767050609252,5000.0,0.00013172,2]
[400045661,1767050625365,5000.0,0.00013172,2]
[400045662,1767050633115,5000.0,0.00013172,2]
[400045663,1767050649189,1221.57539079,0.00013172,2]
[400045664,1767050651249,-683.25,0.00013224,2]
[400045665,1767050651276,-179.65413669,0.00013273,2]
[400045666,1767050655662,-267.36106151,0.00013273,2]
[400045667,1767050657797,5000.0,0.00013172,2]
[400045668,1767050680854,5000.0,0.00013172,2]
[400045669,1767050696640,-420.62349652,0.0001318,2]
[400045670,1767050704277,5000.0,0.00013172,2]
[400045671,1767050710245,228.84514451,0.0002541,120]
[400045672,1767050727276,5000.0,0.00013172,2]
[400045673,1767050750496,5000.0,0.00013172,2]
[400045674,1767050772164,669.2,0.00013168,2]
[400045675,1767050772190,-52.9848018,0.00013273,2]
[400045676,1767050772335,-394.17170168,0.00013273,2]
[400045677,1767050774348,5000.0,0.00013172,2]
[400045678,1767050797759,5000.0,0.00013172,2]
[400045679,1767050820628,5000.0,0.00013172,2]
[400045680,1767050844364,5000.0,0.00013172,2]
[400045681,1767050852997,660.68,0.00013155,2]
[400045682,1767050867690,5000.0,0.00013172,2]
[400045683,1767050891031,5000.0,0.00013172,2]
[400045685,1767050898633,288.82487973,0.0001,2]
[400045686,1767050908077,1000.0,0.0001,2]
[400045687,1767050914370,5000.0,0.00013172,2]
[400045688,1767050914589,6998.44939984,0.0001,2]
[400045690,1767050918114,8257.16988068,7.3e-05,2]
[400045691,1767050932472,652.28,0.00013126,2]
[400045692,1767050938085,5000.0,0.00013172,2]
[400045693,1767050961668,5000.0,0.00013172,2]
[400045694,1767050984427,5000.0,0.00013172,2]
[400045695,1767051007737,5000.0,0.00013172,2]
[400045696,1767051009007,-105.82829832,0.00013273,2]
[400045697,1767051009029,-187.84639568,0.00013273,2]
[400045698,1767051011205,-208.925306,0.00013273,2]
[400045699,1767051014209,643.97,0.00013124,2]
[400045700,1767051030576,5000.0,0.00013172,2]
[400045728,1767051032246,-211.22829832,0.00013273,2]
[400045731,1767051032256,-300.0,0.00013597,2]
[400045733,1767051032267,-300.0,0.00013597,2]
[400045734,1767051032276,-207.82721044,0.00013597,2]
[400045738,1767051032307,-92.17278956,0.00013597,2]
[400045740,1767051032320,-300.0,0.00013597,2]
[400045742,1767051032329,-41217.60172667,0.00013598,2]
[400045921,1767051038366,-500.0,0.00013597,2]
[400045922,1767051038379,-213.49307354,0.00013597,2]
[400045923,1767051038392,-500.0,0.00013597,2]
[400045924,1767051038404,-500.0,0.00013597,2]
[400045925,1767051038418,-500.0,0.00013597,2]
[400045926,1767051038429,-500.0,0.00013597,2]
[400045927,1767051038441,-500.0,0.00013597,2]
[400045928,1767051038455,-500.0,0.00013597,2]
[400045929,1767051038468,-500.0,0.00013597,2]
[400045930,1767051038480,-578.83366238,0.00013597,2]
[400045931,1767051038491,-500.0,0.00013597,2]
[400045932,1767051038503,-500.0,0.00013597,2]
[400045933,1767051038516,-500.0,0.00013597,2]
[400045934,1767051038527,-500.0,0.00013597,2]
[400045935,1767051038538,-500.0,0.00013597,2]
[400045936,1767051038551,-500.0,0.00013597,2]
[400045937,1767051038565,-500.0,0.00013597,2]
[400045938,1767051038576,-500.0,0.00013597,2]
[400045939,1767051038588,-500.0,0.00013597,2]
[400045940,1767051038598,-500.0,0.00013597,2]
[400045941,1767051038610,-500.0,0.00013597,2]
[400045942,1767051038623,-500.0,0.00013597,2]
[400045943,1767051038634,-500.0,0.00013597,2]
[400045944,1767051038646,-500.0,0.00013597,2]
[400045945,1767051038658,-500.0,0.00013597,2]
[400045946,1767051038672,-500.0,0.00013597,2]
[400045947,1767051038684,-500.0,0.00013597,2]
[400045948,1767051038697,-500.0,0.00013597,2]
[400045949,1767051038713,-450.34390428,0.00013597,2]
[400045950,1767051038725,-500.0,0.00013597,2]
[400045951,1767051038738,-500.0,0.00013597,2]
[400045952,1767051038751,-500.0,0.00013597,2]
[400045953,1767051038761,-508.23326061,0.00013597,2]
[400045954,1767051038772,-500.0,0.00013597,2]
[400045955,1767051038782,-500.0,0.00013597,2]
[400045956,1767051038793,-500.0,0.00013597,2]
[400045957,1767051038804,-500.0,0.00013597,2]
[400045958,1767051038817,-500.0,0.00013597,2]
[400045959,1767051038830,-322.61708189,0.00013597,2]
[400045960,1767051038843,-500.0,0.00013597,2]
[400045961,1767051038854,-500.0,0.00013597,2]
[400045962,1767051038864,-500.0,0.00013597,2]
[400045963,1767051038876,-500.0,0.00013597,2]
[400045964,1767051038888,-369.78218915,0.00013597,2]
[400045965,1767051038900,-500.0,0.00013597,2]
[400045966,1767051038911,-500.0,0.00013597,2]
[400045967,1767051038921,-500.0,0.00013597,2]
[400045968,1767051038932,-500.0,0.00013597,2]
[400045969,1767051038943,-500.0,0.00013597,2]
[400045970,1767051038954,-500.0,0.00013597,2]
[400045971,1767051038965,-500.0,0.00013597,2]
[400045972,1767051038976,-500.0,0.00013597,2]
[400045973,1767051038989,-500.0,0.00013597,2]
[400045974,1767051039001,-500.0,0.00013597,2]
[400045975,1767051039013,-500.0,0.00013597,2]
[400045976,1767051039023,-500.0,0.00013597,2]
[400045977,1767051039036,-500.0,0.00013597,2]
[400045978,1767051039047,-500.0,0.00013597,2]
[400045979,1767051039062,-500.0,0.00013597,2]
[400045980,1767051039078,-500.0,0.00013597,2]
[400045981,1767051039089,-500.0,0.00013597,2]
[400045982,1767051039101,-500.0,0.00013597,2]
[400045983,1767051039113,-500.0,0.00013597,2]
[400045984,1767051039124,-500.0,0.00013597,2]
[400045985,1767051039135,-500.0,0.00013597,2]
[400045986,1767051039146,-500.0,0.00013597,2]
[400045987,1767051039157,-500.0,0.00013597,2]
[400045988,1767051039168,-500.0,0.00013597,2]
[400045989,1767051039179,-500.0,0.00013597,2]
[400045990,1767051039191,-500.0,0.00013597,2]
[400045991,1767051039201,-500.0,0.00013597,2]
[400045992,1767051039213,-500.0,0.00013597,2]
[400045993,1767051039224,-500.0,0.00013597,2]
[400045994,1767051039238,-500.0,0.00013597,2]
[400045995,1767051039249,-500.0,0.00013597,2]
[400045996,1767051039260,-500.0,0.00013597,2]
[400045997,1767051039271,-500.0,0.00013597,2]
[400045998,1767051039282,-500.0,0.00013597,2]
[400045999,1767051039294,-500.0,0.00013597,2]
[400046000,1767051039305,-500.0,0.00013597,2]
[400046001,1767051039321,-500.0,0.00013597,2]
[400046002,1767051039332,-500.0,0.00013597,2]
[400046003,1767051039345,-500.0,0.00013597,2]
[400046004,1767051039365,-500.0,0.00013597,2]
[400046005,1767051039382,-500.0,0.00013597,2]
[400046006,1767051039393,-500.0,0.00013597,2]
[400046007,1767051039403,-500.0,0.00013597,2]
[400046008,1767051039414,-500.0,0.00013597,2]
[400046009,1767051039424,-500.0,0.00013597,2]
[400046010,1767051039435,-8782.39827333,0.00013598,2]
[400046011,1767051039447,-500.0,0.00013598,2]
[400046012,1767051039458,-1000000.0,0.00013599,2]
[400046013,1767051039469,-1200.0,0.00013697,2]
[400046014,1767051039480,-1348.5643013,0.00013699,2]
[400046015,1767051039490,-500.0,0.00013699,2]
[400046016,1767051039501,-500.0,0.00013699,2]
[400046017,1767051039513,-580.75858867,0.00013699,2]
[400046018,1767051039524,-500.0,0.00013699,2]
[400046019,1767051039535,-500.0,0.00013699,2]
[400046020,1767051039546,-500.0,0.00013699,2]
[400046021,1767051039557,-500.0,0.00013699,2]
[400046022,1767051039569,-1287.95,0.00013749,2]
[400046023,1767051039579,-500.0,0.00013821,2]
[400046024,1767051039588,-788.07975173,0.00013821,2]
[400046025,1767051039598,-2883.30220438,0.00013831,2]
[400046026,1767051039607,-2600.3767643,0.00013907,2]
[400046027,1767051039761,-500.0,0.0001393,2]
[400046028,1767051039773,-406.8,0.0001393,2]
[400046029,1767051039782,-500.0,0.0001393,2]
[400046030,1767051039791,-500.0,0.0001393,2]
[400046031,1767051039800,-500.0,0.0001393,2]
[400046032,1767051039809,-500.0,0.0001393,2]
[400046033,1767051039818,-500.0,0.0001393,2]
[400046034,1767051039827,-500.0,0.0001393,2]
[400046035,1767051039836,-500.0,0.0001393,2]
[400046036,1767051039845,-500.0,0.0001393,2]
[400046037,1767051039855,-623.26,0.0001393,2]
[400046038,1767051039864,-623.26,0.0001393,2]
[400046040,1767051039873,-623.26,0.0001393,2]
[400046042,1767051039882,-623.26,0.0001393,2]
[400046044,1767051039891,-623.26,0.0001393,2]
[400046046,1767051039900,-623.26,0.0001393,2]
[400046048,1767051039909,-623.26,0.0001393,2]
[400046050,1767051039918,-623.26,0.0001393,2]
[400046052,1767051039927,-623.26,0.0001393,2]
[400046054,1767051039936,-623.26,0.0001393,2]
[400046055,1767051039945,-623.26,0.0001393,2]
[400046056,1767051039955,-623.26,0.0001393,2]
[400046057,1767051039964,-623.26,0.0001393,2]
[400046058,1767051039972,-623.26,0.0001393,2]
[400046059,1767051039984,-623.26,0.0001393,2]
[400046060,1767051039994,-623.26,0.0001393,2]
[400046061,1767051040003,-623.26,0.0001393,2]
[400046062,1767051040013,-623.26,0.0001393,2]
[400046063,1767051040023,-623.26,0.0001393,2]
[400046064,1767051040034,-623.26,0.0001393,2]
[400046065,1767051040047,-623.26,0.0001393,2]
[400046066,1767051040055,-623.26,0.0001393,2]
[400046067,1767051040066,-623.26,0.0001393,2]
[400046068,1767051040075,-623.4449749,0.0001393,2]
[400046069,1767051040084,-912.92938636,0.00013931,2]
[400046070,1767051040094,-300.0,0.00014209,2]
[400046071,1767051040102,-300.0,0.00014209,2]
[400046072,1767051040115,-300.0,0.00014209,2]
[400046073,1767051040125,-300.0,0.00014209,2]
[400046074,1767051040135,-300.0,0.00014209,2]
[400046075,1767051040147,-300.0,0.00014209,2]
[400046076,1767051040157,-300.0,0.00014209,2]
[400046078,1767051040166,-300.0,0.00014209,2]
[400046079,1767051040175,-300.0,0.00014209,2]
[400046080,1767051040185,-300.0,0.00014209,2]
[400046081,1767051040195,-300.0,0.00014209,2]
[400046082,1767051040204,-300.0,0.00014209,2]
[400046083,1767051040213,-300.0,0.00014209,2]
[400046084,1767051040223,-300.0,0.00014209,2]
[400046085,1767051040233,-300.0,0.00014209,2]
[400046086,1767051040242,-600.0,0.00014209,2]
[400046088,1767051040251,-400.0,0.00014247,2]
[400046090,1767051040260,-500.0,0.00014247,2]
[400046092,1767051040269,-1000.0,0.00014247,2]